bitfinex/quotes_ETHUSD_20250426
["timestamp","ask_amount","ask_price","bid_price","bid_amount"]
[1745662980543,3.7756,1808.8,1808.6,5.52894873]
[1745662981051,3.7756,1808.8,1808.5,1.10589053]
[1745662981532,3.7756,1808.8,1808.2,5.93513206]
[1745662981533,0.7756,1808.6,1808.2,5.93513206]
[1745662981702,4.888,1808.5,1808.2,5.5303223]
[1745662982107,4.888,1808.5,1808.2,11.06048171]
[1745662982319,4.888,1808.5,1808.2,5.53015941]
[1745662982841,4.888,1808.5,1808.3,5.52994286]
[1745662983438,0.7756,1808.6,1808.5,5.52944429]
[1745662983600,4.888,1808.6,1808.5,5.52944429]
[1745662983924,0.8534,1808.9,1808.4,0.7602]
[1745662984130,4.888,1808.8,1808.6,5.52884671]
[1745662984311,4.888,1808.8,1808.7,5.52883286]
[1745662984713,0.1,1808.9,1808.8,5.5285272]
[1745662984917,4.988,1808.9,1808.8,5.5285272]
[1745662985118,0.1,1808.9,1808.8,5.5285272]
[1745662985639,0.1,1808.9,1808.8,7.39446321]
[1745662985847,0.1,1808.9,1808.8,6.63426321]
[1745662986202,0.1,1808.9,1808.8,7.39446321]
[1745662986407,0.77941762,1809.0,1808.9,5.52822157]
[1745662986607,0.77941762,1809.0,1808.9,6.02174935]
[1745662986817,0.77941762,1809.0,1808.9,7.36337061]
[1745662988543,4.888,1809.3,1808.9,7.36337061]
[1745662988544,16.597,1809.8,1809.4,5.52669393]
[1745662988747,0.8285,1809.7,1809.6,5.52608311]
[1745662989061,8.7155,1809.7,1809.6,5.52608311]
[1745662989952,7.887,1809.7,1809.5,5.52620522]
[1745662990504,0.1,1809.9,1809.8,5.52547242]
[1745662990822,0.1,1809.9,1809.8,6.42380996]
[1745662991026,0.1,1809.9,1809.8,6.84907645]
[1745662991730,0.1,1809.9,1809.8,6.42380996]
[1745662992322,5.7145,1810.6,1810.5,5.52306409]
[1745662992655,16.594,1810.7,1810.6,5.52303103]
[1745662992856,5.2903895,1810.8,1810.6,5.52303103]
[1745662993061,5.81942845,1810.8,1810.4,5.52338926]
[1745662993260,3.93342845,1810.8,1810.4,6.01688485]
[1745662993562,3.93342845,1810.8,1810.4,5.52363824]
[1745662993750,3.93342845,1810.8,1810.3,5.52393161]
[1745662994057,3.93342845,1810.8,1810.4,5.5233678]
[1745662994285,0.39334285,1810.7,1810.4,5.52349072]
[1745662995161,0.39334285,1810.7,1810.3,11.04751724]
[1745662995489,0.39334285,1810.7,1810.5,5.52325295]
[1745662996287,3.4043895,1810.8,1810.6,5.52303103]
[1745662996646,3.4043895,1810.8,1810.5,5.523317]
[1745662997290,3.4043895,1810.8,1810.4,5.52363649]
[1745662997435,0.8195,1810.6,1810.1,5.92924401]
[1745662997641,4.884,1810.5,1810.1,5.92918877]
[1745662997953,5.45435,1810.5,1810.2,5.52422706]
[1745662998640,5.45435,1810.5,1810.3,5.52390764]
[1745663000271,5.45435,1810.5,1810.1,0.40480976]
[1745663000481,4.884,1810.5,1810.3,5.52374173]
[1745663000985,7.884,1810.5,1810.4,5.52364118]
[1745663001151,4.884,1810.5,1810.3,5.92881221]
[1745663002505,4.884,1810.6,1810.3,0.40512872]
[1745663002708,4.884,1810.6,1810.3,5.52375406]
[1745663003068,3.0,1810.5,1810.1,5.92917133]
[1745663003395,0.7535,1810.4,1810.1,5.92928786]
[1745663003596,3.0,1810.5,1810.3,5.52381489]
[1745663004200,3.7535,1810.5,1810.1,0.40480976]
[1745663004408,3.7535,1810.5,1810.1,5.92934855]
[1745663004594,4.61725,1810.5,1810.1,5.92934855]
[1745663004909,4.61725,1810.5,1810.0,5.52471684]
[1745663005408,4.61725,1810.5,1810.0,5.52471046]
[1745663005571,4.61725,1810.5,1810.1,5.52451735]
[1745663006867,3.0,1810.5,1810.2,5.52395167]
[1745663008007,0.8006,1810.4,1810.1,5.52446032]
[1745663008370,0.8006,1810.4,1810.1,11.04885172]
[1745663009195,0.8006,1810.4,1810.2,5.5242266]
[1745663010089,0.55,1810.3,1810.0,5.52485493]
[1745663010510,4.88,1810.2,1809.9,5.52505396]
[1745663010899,4.88,1810.2,1810.0,5.52484566]
[1745663011114,4.88,1810.2,1810.0,5.52469297]
[1745663011912,4.88,1810.2,1810.0,5.52462696]
[1745663016312,4.88,1810.2,1809.9,5.52514171]
[1745663016488,4.88,1810.2,1809.8,5.52523793]
[1745663017072,4.88,1810.2,1809.9,5.52499975]
[1745663018114,4.88,1810.2,1809.7,6.28471224]
[1745663018312,0.7741,1809.9,1809.4,5.52648282]
[1745663018473,0.7741,1809.9,1809.5,5.52622896]
[1745663018677,4.88,1809.8,1809.5,5.52622896]
[1745663018876,4.88,1809.8,1809.5,6.63151062]
[1745663019311,4.88,1809.8,1809.5,12.15766714]
[1745663019499,4.88,1809.8,1809.5,6.63143818]
[1745663019897,4.88,1809.8,1809.6,5.52588508]
[1745663020583,4.88,1809.8,1809.5,5.52615652]
[1745663021415,3.0,1809.7,1809.2,6.76283518]
[1745663021616,0.7741,1809.6,1809.1,5.52741147]
[1745663021820,0.7741,1809.6,1809.0,5.52778047]
[1745663021992,0.7741,1809.4,1808.9,7.27448377]
[1745663022182,5.6551,1809.4,1809.1,5.52758939]
[1745663023691,5.6551,1809.4,1809.0,6.25519017]
[1745663024722,5.6551,1809.4,1809.0,6.25511272]
[1745663024915,5.6551,1809.4,1809.1,5.52759907]
[1745663026417,5.6551,1809.4,1809.1,5.52747672]
[1745663027589,5.6551,1809.4,1809.0,6.25532894]
[1745663028101,0.7541,1809.2,1808.8,5.81710586]
[1745663028326,0.7541,1809.2,1808.8,5.52843526]
[1745663029496,0.55,1809.1,1808.7,5.52863884]
[1745663029707,4.882,1809.0,1808.7,5.52863884]
[1745663030095,4.882,1809.0,1808.9,5.52822157]
[1745663030387,4.882,1809.0,1808.8,5.52852632]
[1745663030591,4.882,1809.0,1808.8,5.5285272]
[1745663030819,4.882,1809.0,1808.9,5.52822157]
[1745663032614,3.0,1809.3,1809.1,5.52738548]
[1745663032796,7.882,1809.3,1809.1,5.52738548]
[1745663033295,7.882,1809.3,1809.0,5.52773351]
[1745663033520,7.882,1809.3,1808.9,5.52809845]
[1745663033690,3.0,1809.2,1808.8,5.52841464]
[1745663033896,0.809,1809.1,1808.9,5.52815117]
[1745663034634,0.809,1809.1,1808.8,5.52834294]
[1745663034814,0.809,1809.1,1808.7,6.67492491]
[1745663035121,0.809,1809.1,1808.8,5.52848756]
[1745663035332,8.691,1809.3,1808.9,5.52792894]
[1745663035723,8.691,1809.3,1808.9,5.52822157]
[1745663040635,8.691,1809.3,1808.8,6.3242831]
[1745663041008,8.691,1809.3,1808.8,5.5283831]
[1745663043138,8.691,1809.3,1808.9,5.52821749]
[1745663043344,8.691,1809.3,1808.9,6.63366622]
[1745663043543,3.0,1809.3,1809.0,6.2842971]
[1745663043702,3.0,1809.1,1809.0,5.5278971]
[1745663043907,3.0,1809.1,1808.9,1.10566006]
[1745663044143,3.8259,1809.1,1808.9,1.10566006]
[1745663044342,3.8259,1809.1,1808.6,1.65473754]
[1745663045407,3.8259,1809.1,1808.7,5.52867156]
[1745663045931,3.8259,1809.1,1808.8,5.52851058]
[1745663046339,3.8259,1809.1,1808.7,5.52881109]
[1745663048120,3.0,1809.1,1808.7,5.52881109]
[1745663048328,0.8151,1809.0,1808.8,0.55288111]
[1745663049756,0.8151,1809.0,1808.8,6.08137479]
[1745663050463,3.0,1809.1,1808.9,5.52822157]
[1745663051437,3.0,1809.1,1808.8,6.08125973]
[1745663052467,3.0,1809.1,1808.8,5.52837862]
[1745663057684,3.0,1809.1,1808.7,5.52881653]
[1745663057685,3.0,1809.1,1808.6,1.65473754]
[1745663057848,3.0,1809.1,1809.0,5.52791597]
[1745663058785,4.881,1809.2,1809.1,5.52761041]
[1745663059076,4.881,1809.2,1809.0,5.52772099]
[1745663059276,4.881,1809.2,1809.1,5.52761041]
[1745663059845,4.881,1809.2,1809.0,6.70936506]
[1745663061050,4.881,1809.2,1809.0,12.23706824]
[1745663061963,4.881,1809.2,1809.1,5.47761041]
[1745663065065,0.7864,1809.5,1809.1,5.52761041]
[1745663065269,4.879,1809.5,1809.3,5.52687007]
[1745663065500,4.879,1809.5,1809.2,6.30621455]
[1745663066005,4.879,1809.5,1809.2,11.83330059]
[1745663066308,7.879,1809.6,1809.4,5.52655183]
[1745663067169,7.879,1809.6,1809.3,5.52684772]
[1745663067382,7.879,1809.6,1809.2,6.30621422]
[1745663067581,7.879,1809.6,1809.3,5.52691316]
[1745663067782,7.879,1809.6,1809.2,6.30623761]
[1745663067993,7.879,1809.6,1809.2,7.55670257]
[1745663068598,7.879,1809.6,1809.2,7.55667273]
[1745663068802,7.879,1809.6,1809.2,6.30620777]
[1745663068979,7.879,1809.6,1809.2,5.52710777]
[1745663069362,7.879,1809.6,1809.3,5.52695552]
[1745663070217,7.879,1809.6,1809.5,5.5263885]
[1745663070371,4.879,1809.6,1809.5,5.5263885]
[1745663076919,0.49352778,1810.1,1809.5,5.5263885]
[1745663076920,0.8008,1810.2,1810.1,5.52455665]
[1745663077122,4.878,1810.3,1810.0,5.52470325]
[1745663077278,4.878,1810.3,1810.1,11.04866186]
[1745663077478,4.878,1810.3,1810.0,5.52472499]
[1745663077677,4.878,1810.3,1810.1,5.5243285]
[1745663080307,4.878,1810.3,1810.0,5.92911606]
[1745663081720,4.878,1810.3,1810.1,5.52452731]
[1745663082380,4.878,1810.3,1810.0,11.04938708]
[1745663082712,4.878,1810.3,1810.0,5.52461874]
[1745663082882,4.878,1810.3,1810.0,5.52461317]
[1745663083082,4.878,1810.3,1810.1,5.52452426]
[1745663085412,4.878,1810.3,1810.0,5.52469374]
[1745663086705,7.40458,1810.3,1809.9,5.52492408]
[1745663087097,7.40458,1810.3,1810.0,5.52474482]
[1745663087500,7.40458,1810.3,1810.1,5.52453829]
[1745663087718,4.878,1810.3,1810.0,6.28723735]
[1745663088724,4.878,1810.3,1810.1,5.52441502]
[1745663089120,4.878,1810.3,1810.1,11.04877646]
[1745663089299,4.878,1810.3,1810.1,5.52436144]
[1745663090821,4.878,1810.3,1810.0,5.52470155]
[1745663091127,7.40458,1810.3,1809.9,5.5251635]
[1745663091331,7.40458,1810.3,1809.9,5.52497964]
[1745663091537,7.40458,1810.3,1810.0,5.52473345]
[1745663092232,7.40458,1810.3,1809.9,5.52500361]
[1745663092699,7.40458,1810.3,1810.0,5.52475365]
[1745663093533,7.40458,1810.3,1810.1,5.5245076]
[1745663094796,7.878,1810.3,1810.2,5.52425146]
[1745663096446,1.49590456,1810.5,1810.3,5.5239463]
[1745663096749,0.4043895,1810.8,1810.7,5.52272601]
[1745663097038,0.4043895,1810.8,1810.7,6.28542601]
[1745663098344,0.4043895,1810.8,1810.6,5.52287047]
[1745663098643,0.4043895,1810.8,1810.6,5.52285696]
[1745663099003,0.4043895,1810.8,1810.5,6.30679721]
[1745663099300,0.4043895,1810.8,1810.4,0.40480976]
[1745663099531,0.7689,1810.7,1810.3,5.523805]
[1745663099848,4.873,1810.6,1810.4,5.52355825]
[1745663100333,4.873,1810.6,1810.3,5.52379831]
[1745663100533,4.873,1810.6,1810.3,5.52374185]
[1745663100902,3.0,1810.5,1810.2,5.52412733]
[1745663101103,3.0,1810.5,1810.3,5.52382564]
[1745663102550,3.0,1810.5,1810.3,5.52377083]
[1745663105844,3.0,1810.5,1810.3,11.04750618]
[1745663106133,3.0,1810.5,1810.3,5.52373535]
[1745663106743,3.7873,1810.5,1810.2,5.52415084]
[1745663106950,3.7873,1810.5,1810.2,11.04825238]
[1745663107159,3.7873,1810.5,1810.3,5.52393845]
[1745663107453,3.7873,1810.5,1810.3,5.52393463]
[1745663107831,3.7873,1810.5,1810.2,5.52405576]
[1745663108360,3.7873,1810.5,1810.0,0.80954297]
[1745663108361,3.0,1810.2,1809.7,0.8058]
[1745663108520,3.0,1810.0,1809.6,0.40480976]
[1745663108853,3.0,1810.0,1809.6,5.93072709]
[1745663109354,3.0,1810.0,1809.5,6.33215174]
[1745663109555,0.8047,1809.9,1809.6,5.52605282]
[1745663109756,0.8047,1809.9,1809.6,5.52592427]
[1745663110686,0.8047,1809.9,1809.5,5.52626405]
[1745663110856,0.8047,1809.9,1809.6,5.52605973]
[1745663111028,0.55,1809.8,1809.4,5.81513114]
[1745663111227,4.873,1809.7,1809.4,5.52653982]
[1745663111838,3.8047,1809.6,1809.2,5.52716683]
[1745663112039,3.0,1809.6,1809.4,5.52662906]
[1745663112235,4.873,1809.7,1809.2,5.52719666]
[1745663112441,4.873,1809.7,1809.5,5.52616238]
[1745663114779,4.873,1809.7,1809.5,5.52623423]
[1745663114961,4.873,1809.7,1809.5,11.05237644]
[1745663115166,4.873,1809.7,1809.6,5.52608311]
[1745663115740,4.873,1809.7,1809.5,5.52621576]
[1745663116142,4.873,1809.7,1809.4,6.33223159]
[1745663116445,4.873,1809.7,1809.4,5.52643159]
[1745663117083,4.873,1809.7,1809.3,6.07954963]
[1745663117246,3.0,1809.6,1809.2,5.52718105]
[1745663119251,0.7947,1809.5,1809.2,5.52718105]
[1745663119843,0.7947,1809.5,1809.0,7.51522904]
[1745663120186,0.7947,1809.5,1809.1,5.52759789]
[1745663120386,1.17417,1809.5,1809.1,5.52759789]
[1745663122483,1.17417,1809.5,1809.1,5.52736241]
[1745663122691,3.0,1809.6,1809.3,5.52681603]
[1745663122851,3.0,1809.6,1809.0,6.82717108]
[1745663123361,3.0,1809.6,1809.3,5.52680179]
[1745663124776,3.0,1809.6,1809.2,5.52719137]
[1745663125158,3.0,1809.6,1809.2,5.5270909]
[1745663125480,3.0,1809.6,1809.3,5.52698736]
[1745663126756,3.0,1809.6,1809.2,5.52710884]
[1745663127591,3.0,1809.6,1809.0,1.71178112]
[1745663127592,1.3586,1809.5,1809.0,0.8058]
[1745663127794,1.3586,1809.5,1809.0,5.52778702]
[1745663128372,0.55,1809.3,1808.9,5.93286921]
[1745663128563,4.872,1809.2,1808.9,5.93286921]
[1745663128758,4.872,1809.2,1808.9,0.40480976]
[1745663128959,4.872,1809.2,1808.8,6.58989033]
[1745663129584,4.872,1809.2,1808.8,12.11817579]
[1745663129787,4.872,1809.2,1809.0,5.5278039]
[1745663130584,4.872,1809.2,1808.9,5.5280248]
[1745663130904,4.872,1809.2,1809.0,5.52777944]
[1745663131062,4.872,1809.2,1809.0,5.52780097]
[1745663131393,4.872,1809.2,1809.1,6.30711041]
[1745663131582,4.872,1809.2,1809.1,5.52761041]
[1745663132464,4.872,1809.2,1809.0,6.63332309]
[1745663132663,4.872,1809.2,1808.9,5.52802836]
[1745663132664,7.872,1809.2,1808.9,5.52802836]
[1745663133092,7.872,1809.2,1809.0,5.52791057]
[1745663133471,7.872,1809.2,1809.1,5.52761041]
[1745663133661,7.872,1809.2,1808.8,2.77280657]
[1745663133999,7.872,1809.2,1809.0,5.52787007]
[1745663134607,7.872,1809.2,1808.9,5.52802579]
[1745663134762,7.872,1809.2,1808.8,11.34533234]
[1745663135163,7.872,1809.2,1808.8,5.81701019]
[1745663135363,7.872,1809.2,1808.8,11.34531295]
[1745663136601,7.872,1809.2,1808.9,5.52818375]
[1745663139208,0.26850011,1810.1,1809.3,5.52681887]
[1745663139394,0.7659,1810.5,1809.8,0.79]
[1745663139594,0.7659,1810.5,1810.1,5.52433655]
[1745663139907,0.7659,1810.5,1810.3,5.5239463]
[1745663140205,4.873,1810.6,1810.4,5.52364118]
[1745663140425,4.873,1810.6,1810.4,5.5234859]
[1745663140971,0.7659,1810.7,1810.4,5.5234859]
[1745663141180,4.872,1810.6,1810.4,5.5234859]
[1745663141506,4.872,1810.6,1810.4,5.52334496]
[1745663142203,4.872,1810.6,1810.3,5.52382603]
[1745663142408,4.872,1810.6,1810.4,5.52361614]
[1745663142713,4.872,1810.6,1810.4,5.5234714]
[1745663143409,4.872,1810.6,1810.5,5.52333609]
[1745663143714,4.872,1810.6,1810.4,5.5234714]
[1745663144410,3.0,1810.5,1810.3,5.52393682]
[1745663144901,3.0,1810.5,1810.2,5.52409337]
[1745663145305,3.0,1810.5,1810.2,5.52402165]
[1745663145498,3.0,1810.5,1810.3,5.52391778]
[1745663146410,3.0,1810.5,1810.2,5.52408678]
[1745663146603,3.0,1810.5,1810.3,5.52371543]
[1745663147606,3.0,1810.5,1810.1,5.52436546]
[1745663147910,3.0,1810.5,1810.3,5.5238122]
[1745663148077,3.0,1810.5,1810.3,5.52376498]
[1745663151013,3.4043895,1810.8,1810.4,0.8066]
[1745663151183,0.8009,1810.7,1810.2,0.8066]
[1745663151383,0.8009,1810.7,1810.3,5.5238994]
[1745663152808,0.8009,1810.7,1810.0,6.74183044]
[1745663153015,0.8009,1810.7,1810.3,5.5237089]
[1745663153722,0.8009,1810.7,1810.2,5.52405417]
[1745663153918,0.8009,1810.7,1810.3,5.52379851]
[1745663154502,0.8009,1810.7,1810.4,5.5235046]
[1745663155123,8.8253895,1810.8,1810.4,1.91132154]
[1745663155303,8.8253895,1810.8,1810.6,5.5229015]
[1745663155915,0.4043895,1810.8,1810.7,5.52272601]
[1745663156114,5.2753895,1810.8,1810.7,5.52272601]
[1745663156320,5.2753895,1810.8,1810.7,6.62728876]
[1745663159134,0.4043895,1810.8,1810.7,6.62728876]
[1745663159432,0.4043895,1810.8,1810.7,7.43388876]
[1745663159639,0.4043895,1810.8,1810.7,6.62728876]
[1745663160400,6.0732895,1810.8,1810.5,5.92799008]
[1745663160603,6.0732895,1810.8,1810.6,5.52276687]
[1745663161204,6.0732895,1810.8,1810.6,11.04559564]
[1745663161728,6.0732895,1810.8,1810.7,5.52272601]
[1745663162540,0.4043895,1810.8,1810.7,5.52272601]
[1745663162715,0.4043895,1810.8,1810.7,7.4338753]
[1745663163601,0.4043895,1810.8,1810.7,6.6272753]
[1745663165437,0.4043895,1810.8,1810.6,5.52287069]
[1745663165640,0.4043895,1810.8,1810.5,11.4512873]
[1745663165841,0.4043895,1810.8,1810.6,5.5229555]
[1745663166139,0.4043895,1810.8,1810.5,5.92794147]
[1745663166346,0.4043895,1810.8,1810.7,5.52272601]
[1745663166507,0.4043895,1810.8,1810.6,5.5228543]
[1745663166703,0.4043895,1810.8,1810.5,0.40480976]
[1745663166903,3.4043895,1810.8,1810.5,0.40480976]
[1745663167935,3.4043895,1810.8,1810.4,5.52350942]
[1745663168143,0.7964,1810.7,1810.3,5.5237542]
[1745663168706,0.55,1810.6,1810.1,6.73585607]
[1745663169031,3.7964,1810.4,1810.0,5.52464221]
[1745663169216,3.7964,1810.4,1809.9,5.5250191]
[1745663169420,3.7964,1810.4,1809.9,6.63005441]
[1745663169841,3.7964,1810.4,1810.1,5.52444021]
[1745663171142,3.7964,1810.4,1810.0,5.52485854]
[1745663171311,3.7964,1810.4,1810.1,5.52453656]
[1745663171707,4.868,1810.5,1810.1,5.5243997]
[1745663171926,0.55,1810.4,1810.2,6.07657264]
[1745663172247,0.55,1810.4,1810.2,0.55243997]
[1745663173145,0.55,1810.4,1810.2,6.07665453]
[1745663173346,0.55,1810.4,1810.2,0.55243997]
[1745663174128,0.55,1810.4,1810.2,5.52424859]
[1745663174333,0.55,1810.4,1810.1,6.3345786]
[1745663175055,0.8217,1810.3,1810.0,5.52465419]
[1745663175440,0.8217,1810.3,1810.1,5.52454147]
[1745663176618,0.8217,1810.3,1810.0,5.52483987]
[1745663176816,0.8217,1810.3,1810.1,5.52454679]
[1745663177055,0.8217,1810.3,1810.1,5.52433914]
[1745663177225,0.8217,1810.3,1810.2,5.52425146]
[1745663177571,0.8217,1810.7,1810.4,5.52364118]
[1745663177860,7.868,1810.6,1810.2,6.28906417]
[1745663178016,4.3564,1810.5,1810.0,5.92945118]
[1745663178214,9.07336643,1810.5,1809.9,5.52504118]
[1745663178446,0.8064,1810.4,1809.9,5.52516713]
[1745663178609,0.8064,1810.4,1810.0,5.52479746]
[1745663178814,0.8064,1810.4,1810.0,6.6296544]
[1745663179121,0.8064,1810.4,1809.8,0.7926]
[1745663179336,3.0,1810.5,1810.2,5.52413827]
[1745663179849,3.0,1810.5,1810.2,5.52418445]
[1745663180351,3.0,1810.5,1810.1,5.52454193]
[1745663180538,3.0,1810.5,1810.2,5.52421833]
[1745663181952,1.3564,1810.5,1810.0,5.52471184]
[1745663182149,1.3564,1810.5,1810.0,6.70895308]
[1745663182452,1.3564,1810.5,1810.0,1.18424124]
[1745663182638,1.3564,1810.5,1810.0,6.70908204]
[1745663183154,0.55,1810.3,1809.8,5.52524816]
[1745663183349,0.7713,1810.1,1809.8,5.52524816]
[1745663183956,0.7713,1810.1,1809.8,5.52524551]
[1745663185157,0.7713,1810.1,1809.9,5.52512763]
[1745663185456,0.7713,1810.1,1810.0,5.52486187]
[1745663185615,0.7713,1810.1,1809.7,6.29171292]
[1745663185957,0.7713,1810.1,1809.6,1.3157963]
[1745663185958,0.7713,1810.1,1809.8,0.62917129]
[1745663186121,0.7713,1810.1,1809.7,5.525745]
[1745663186453,3.7713,1810.1,1809.6,5.93073116]
[1745663186944,0.7713,1810.0,1809.6,5.93073116]
[1745663187656,0.7713,1810.0,1809.7,5.52573919]
[1745663188157,0.7713,1810.0,1809.6,5.93070543]
[1745663188359,0.7713,1810.0,1809.6,12.60225646]
[1745663188547,0.7713,1810.0,1809.6,6.67155103]
[1745663188745,0.7713,1810.0,1809.7,5.52562641]
[1745663189865,0.7713,1810.0,1809.6,1.14569527]
[1745663190065,0.7713,1810.0,1809.7,5.52550271]
[1745663190646,0.7713,1810.0,1809.8,5.52538289]
[1745663191347,0.7713,1810.0,1809.8,5.52527592]
[1745663193312,0.7713,1810.1,1809.7,0.7661]
[1745663193485,0.7713,1810.1,1809.9,5.52515048]
[1745663193660,0.7713,1810.1,1809.9,1.10504628]
[1745663193872,3.7713,1810.1,1809.7,5.52559148]
[1745663194371,3.7713,1810.1,1809.7,11.05117601]
[1745663194683,3.7713,1810.1,1809.8,5.52544534]
[1745663195279,3.7713,1810.1,1809.7,5.52561014]
[1745663195990,3.7713,1810.1,1809.8,5.52536372]
[1745663196183,3.7713,1810.1,1809.9,5.52508605]
[1745663196480,3.0,1810.1,1809.9,5.52508605]
[1745663196885,5.6393,1810.2,1809.9,5.52508605]
[1745663198491,5.6393,1810.2,1809.9,5.52493058]
[1745663199691,5.6393,1810.2,1809.9,5.52493216]
[1745663200183,5.6393,1810.2,1809.9,11.04992297]
[1745663200389,5.6393,1810.2,1809.9,5.52493216]
[1745663201260,4.868,1810.2,1810.1,5.52455665]
[1745663204995,7.868,1810.2,1809.9,0.68435685]
[1745663205173,7.868,1810.2,1809.5,5.93104455]
[1745663205174,0.55,1810.0,1809.5,5.93104455]
[1745663205383,0.55,1809.8,1809.4,0.7597]
[1745663205557,4.868,1809.7,1809.4,5.52664068]
[1745663205886,0.7635,1809.6,1809.3,5.5268849]
[1745663206059,0.7635,1809.6,1809.3,12.2349758]
[1745663206255,0.7635,1809.6,1809.3,6.70815309]
[1745663206501,0.7635,1809.6,1809.4,5.52649112]
[1745663207366,0.7635,1809.6,1809.3,6.70822096]
[1745663207762,0.7635,1809.6,1809.3,12.2349911]
[1745663207993,0.7635,1809.6,1809.3,6.70814786]
[1745663208467,0.7635,1809.6,1809.4,5.52667912]
[1745663208990,0.7635,1809.6,1809.3,6.70829562]
[1745663209499,0.7635,1809.6,1809.3,1.18137772]
[1745663210266,0.7635,1809.6,1809.2,6.28676635]
[1745663210467,0.7635,1809.6,1809.2,0.7597]
[1745663211502,0.7635,1809.6,1809.1,11.45958562]
[1745663211690,0.7635,1809.6,1809.2,5.52713327]
[1745663216102,0.7635,1809.6,1809.1,5.93224951]
[1745663216313,3.7635,1809.6,1809.1,1.67356739]
[1745663216516,3.7635,1809.6,1809.1,0.40480976]
[1745663217370,0.55,1809.5,1809.0,6.33750368]
[1745663217566,0.7595,1809.4,1809.1,5.52737783]
[1745663219772,0.7595,1809.4,1809.2,5.52726659]
[1745663220472,0.7595,1809.5,1809.3,5.52698822]
[1745663220889,0.7595,1809.5,1809.2,5.52713514]
[1745663221096,0.7595,1809.5,1809.1,6.28492128]
[1745663221299,0.7595,1809.5,1809.1,7.16395635]
[1745663221614,0.7595,1809.5,1809.2,5.52720314]
[1745663222883,0.7595,1809.5,1809.1,1.63653507]
[1745663223078,0.7595,1809.5,1809.1,0.7575]
[1745663223331,0.7595,1809.5,1809.1,6.28496416]
[1745663224811,0.7595,1809.5,1809.1,5.52746416]
[1745663225293,0.7595,1809.5,1809.2,5.5271717]
[1745663226711,4.867,1809.6,1809.4,5.52654013]
[1745663227623,4.867,1809.6,1809.3,5.52699939]
[1745663227624,4.867,1809.6,1809.3,11.05357669]
[1745663227827,4.867,1809.6,1809.3,12.23820436]
[1745663228332,4.867,1809.6,1809.4,5.52667344]
[1745663233723,4.867,1809.6,1809.3,6.71146843]
[1745663233911,4.867,1809.6,1809.4,5.52651962]
[1745663235043,4.867,1809.6,1809.5,5.5263885]
[1745663235334,4.867,1809.6,1809.4,5.52651962]
[1745663236440,4.867,1809.6,1809.4,6.75032236]
[1745663236744,4.867,1809.6,1809.4,12.27678944]
[1745663236941,4.867,1809.6,1809.4,6.7502562]
[1745663237239,4.867,1809.6,1809.4,5.52645346]
[1745663237440,4.867,1809.6,1809.4,11.05290801]
[1745663238635,4.867,1809.6,1809.4,11.05296462]
[1745663238841,4.867,1809.6,1809.4,5.52645346]
[1745663239042,4.867,1809.6,1809.4,11.05291069]
[1745663239217,4.867,1809.6,1809.4,5.52645346]
[1745663239544,4.867,1809.6,1809.4,11.05291256]
[1745663239864,4.867,1809.6,1809.4,5.52645346]
[1745663240718,4.867,1809.6,1809.5,5.5263885]
[1745663243323,4.867,1809.6,1809.4,5.52645346]
[1745663244734,0.7555,1809.5,1808.9,2.05228598]
[1745663244935,3.7555,1809.5,1809.0,1.19270976]
[1745663245122,3.7555,1809.5,1809.0,6.72051598]
[1745663245546,3.7555,1809.5,1809.1,5.52755687]
[1745663245751,3.7555,1809.5,1809.2,5.5272742]
[1745663246217,3.7555,1809.5,1809.1,5.52749526]
[1745663248957,3.7555,1809.5,1809.1,11.0548562]
[1745663249263,3.7555,1809.5,1809.2,5.52719097]
[1745663249630,3.7555,1809.5,1809.1,5.52745341]
[1745663250159,3.7555,1809.5,1809.1,5.52738986]
[1745663251664,3.7555,1809.5,1809.1,5.52738158]
[1745663251866,3.7555,1809.5,1809.0,1.19270976]
[1745663252164,3.7555,1809.5,1809.2,5.52730251]
[1745663252367,3.7555,1809.5,1809.0,6.72046583]
[1745663252671,3.7555,1809.5,1809.1,5.52748711]
[1745663253270,3.7555,1809.5,1809.1,11.05486741]
[1745663253441,0.7555,1809.5,1809.2,5.52708785]
[1745663253647,5.417,1809.6,1809.3,11.05342944]
[1745663253944,5.417,1809.6,1809.3,5.52671472]
[1745663254951,5.417,1809.6,1809.2,5.52730402]
[1745663255871,5.417,1809.6,1809.2,5.52708658]
[1745663256241,5.417,1809.6,1809.2,11.05415111]
[1745663256864,5.417,1809.6,1809.2,5.52706453]
[1745663257569,0.7744,1809.5,1809.2,5.52706453]
[1745663258274,0.7744,1809.5,1809.2,11.05413468]
[1745663259069,0.7744,1809.5,1809.2,5.52706453]
[1745663260472,0.7744,1809.5,1809.2,11.05413887]
[1745663260678,0.7744,1809.5,1809.2,5.52706453]
[1745663262372,0.7744,1809.5,1809.3,5.52689515]
[1745663264179,0.7744,1809.5,1809.2,5.52715963]
[1745663264342,0.7744,1809.5,1809.1,5.52741356]
[1745663264672,0.7744,1809.5,1809.2,5.5272339]
[1745663266649,0.7744,1809.5,1809.2,5.48352041]
[1745663267591,0.7744,1809.5,1809.2,11.01060322]
[1745663267797,0.7744,1809.5,1809.2,5.48352041]
[1745663268425,0.7744,1809.5,1809.2,11.01058229]
[1745663268606,0.7744,1809.5,1809.2,11.01061478]
[1745663269178,0.7744,1809.5,1809.2,11.01058983]
[1745663269356,5.417,1809.6,1809.4,5.52655799]
[1745663269357,4.867,1809.6,1809.4,5.52655799]
[1745663269562,4.867,1809.6,1809.4,5.52645602]
[1745663274284,4.867,1809.6,1809.3,5.52687087]
[1745663274589,4.867,1809.6,1809.2,11.05431568]
[1745663274791,4.867,1809.6,1809.3,5.52697052]
[1745663274989,5.43114,1809.6,1809.3,5.52697052]
[1745663277496,5.43114,1809.6,1809.3,5.52678957]
[1745663278694,5.43114,1809.6,1809.1,0.8066]
[1745663278905,5.43114,1809.6,1809.3,5.5267045]